bitfinex/quotes_BTCUSD_20260117
["timestamp","ask_amount","ask_price","bid_price","bid_amount"]
[1768655875493,0.00022065,95298.0,95295.0,0.01049372]
[1768655876826,0.01071404,95298.0,95294.0,0.01049384]
[1768655877029,0.00022065,95298.0,95295.0,0.01049372]
[1768655877477,0.00022065,95298.0,95296.0,0.05246804]
[1768655877797,0.00022065,95298.0,95295.0,0.01049372]
[1768655878049,0.00022065,95298.0,95294.0,0.01049384]
[1768655878253,0.00022065,95298.0,95295.0,0.01049372]
[1768655879248,0.01049604,95274.0,95258.0,0.06218555]
[1768655879488,0.25390825,95270.0,95267.0,0.01049681]
[1768655879682,0.01049648,95270.0,95263.0,0.01049725]
[1768655879899,0.01049659,95269.0,95264.0,0.07268269]
[1768655880069,0.00047258,95274.0,95266.0,0.06218555]
[1768655880273,0.00047258,95274.0,95266.0,0.1146701]
[1768655880479,0.01096862,95274.0,95268.0,0.0104967]
[1768655880724,0.01049615,95273.0,95266.0,0.06218555]
[1768655881062,0.01049648,95270.0,95266.0,0.06218555]
[1768655881472,0.00047258,95274.0,95269.0,0.01049659]
[1768655881671,0.01049615,95273.0,95269.0,0.01049659]
[1768655882114,0.01049615,95273.0,95262.0,0.20994582]
[1768655882115,0.01049516,95282.0,95273.0,0.01049615]
[1768655882435,0.01049516,95282.0,95278.0,0.06218555]
[1768655882665,0.01049505,95283.0,95279.0,0.0106045]
[1768655882881,0.01049516,95282.0,95279.0,0.0106045]
[1768655883567,0.01049527,95281.0,95278.0,0.06218555]
[1768655883765,0.06297206,95281.0,95278.0,0.06218555]
[1768655884007,0.01049538,95280.0,95276.0,0.07268137]
[1768655884180,0.01049549,95279.0,95276.0,0.06218555]
[1768655884960,0.01049571,95277.0,95273.0,0.0726817]
[1768655885161,0.00828716,95277.0,95273.0,0.0726817]
[1768655885423,0.05247861,95277.0,95273.0,0.06218555]
[1768655885590,0.06297399,95279.0,95273.0,0.06218555]
[1768655885880,0.05247846,95278.0,95273.0,0.06218555]
[1768655886174,0.05247846,95278.0,95277.0,0.00064832]
[1768655886386,0.06297399,95279.0,95277.0,0.00064832]
[1768655886796,0.05247801,95278.0,95277.0,0.00064832]
[1768655888366,0.01049549,95279.0,95277.0,0.00064832]
[1768655889118,0.0629731,95279.0,95277.0,0.00064832]
[1768655889321,0.01049549,95279.0,95277.0,0.00064832]
[1768655889532,0.05247801,95278.0,95277.0,0.00064832]
[1768655889704,0.01049549,95279.0,95277.0,0.00064832]
[1768655891813,0.01049505,95283.0,95277.0,0.01114403]
[1768655892026,0.01049516,95282.0,95278.0,0.08428635]
[1768655892228,0.01049505,95283.0,95279.0,0.06218555]
[1768655892503,0.01049505,95283.0,95279.0,0.07268104]
[1768655893370,0.01049494,95284.0,95280.0,0.01049538]
[1768655893587,0.01049494,95284.0,95280.0,0.01029956]
[1768655894215,0.01049494,95284.0,95280.0,0.01010374]
[1768655894637,0.01049494,95284.0,95281.0,0.01049527]
[1768655894847,0.01049494,95284.0,95281.0,0.01044995]
[1768655895053,0.01049483,95285.0,95281.0,0.01044995]
[1768655895669,0.01049483,95285.0,95281.0,0.01040463]
[1768655896323,0.01049494,95284.0,95280.0,0.01010374]
[1768655896980,0.01054946,95284.0,95280.0,0.01010374]
[1768655897624,0.01054946,95284.0,95281.0,0.01049527]
[1768655897852,0.01054946,95284.0,95280.0,0.01049538]
[1768655898259,0.01054946,95284.0,95281.0,0.01049527]
[1768655898686,5.452e-05,95284.0,95281.0,0.01049527]
[1768655899401,5.452e-05,95284.0,95281.0,0.06297159]
[1768655899599,5.452e-05,95284.0,95281.0,0.01049527]
[1768655900474,5.452e-05,95284.0,95281.0,0.07268082]
[1768655901267,5.452e-05,95284.0,95282.0,0.05247569]
[1768655901503,5.452e-05,95284.0,95283.0,0.05247525]
[1768655901714,0.01049384,95294.0,95288.0,0.0104945]
[1768655901916,0.01049406,95292.0,95288.0,0.07738319]
[1768655902258,0.06296374,95293.0,95288.0,0.07738319]
[1768655902259,0.01049395,95293.0,95289.0,0.01049439]
[1768655902956,0.01049417,95291.0,95288.0,0.06688869]
[1768655903105,0.01049395,95293.0,95288.0,0.06688869]
[1768655903284,0.01049406,95292.0,95288.0,0.07738319]
[1768655903487,0.01071404,95298.0,95288.0,0.06688869]
[1768655903671,0.01049372,95295.0,95288.0,0.06688869]
[1768655903881,0.01076855,95298.0,95292.0,0.01049406]
[1768655904637,0.01076855,95298.0,95292.0,0.06296387]
[1768655904839,0.01076855,95298.0,95293.0,0.05246964]
[1768655905315,0.01076855,95298.0,95294.0,0.01049384]
[1768655905520,0.01076855,95298.0,95288.0,0.06688869]
[1768655905521,0.06323582,95298.0,95288.0,0.06688869]
[1768655905710,0.01049361,95296.0,95293.0,0.01049395]
[1768655905920,0.0104935,95297.0,95293.0,0.01049395]
[1768655907887,0.01049361,95296.0,95292.0,0.01049406]
[1768655908088,0.0104935,95297.0,95293.0,0.01049395]
[1768655908497,0.01076855,95298.0,95294.0,0.01049384]
[1768655909250,0.0104935,95297.0,95290.0,0.01049428]
[1768655909478,0.01076855,95298.0,95294.0,0.01049384]
[1768655909716,0.0629611,95297.0,95288.0,0.06688869]
[1768655909920,0.0104935,95297.0,95291.0,0.05247076]
[1768655910125,0.00027516,95298.0,95293.0,0.01049395]
[1768655910350,0.01076855,95298.0,95294.0,0.01049384]
[1768655910771,0.01049361,95296.0,95292.0,0.01049406]
[1768655911580,0.0104935,95297.0,95293.0,0.01049395]
[1768655911941,0.01049361,95296.0,95291.0,0.01049417]
[1768655912296,0.01049406,95292.0,95287.0,0.01217491]
[1768655912468,0.01049417,95291.0,95287.0,0.01049461]
[1768655912671,0.00838801,95291.0,95287.0,0.01049461]
[1768655912871,0.01049417,95291.0,95287.0,0.01049461]
[1768655913079,0.01049406,95292.0,95288.0,0.0104945]
[1768655914140,0.01049417,95291.0,95286.0,0.01049472]
[1768655914371,0.00924173,95291.0,95287.0,0.01049461]
[1768655914577,0.01049406,95292.0,95288.0,0.0104945]
[1768655914978,0.01049417,95291.0,95288.0,0.0104945]
[1768655915572,0.00984593,95291.0,95288.0,0.0104945]
[1768655915787,0.01049406,95292.0,95288.0,0.0104945]
[1768655916547,0.01049406,95292.0,95287.0,0.06296762]
[1768655916548,0.01049406,95292.0,95287.0,0.01049461]
[1768655916786,0.01049406,95292.0,95288.0,0.0104945]
[1768655917940,0.01049395,95293.0,95289.0,0.01049439]
[1768655919115,0.01049361,95296.0,95290.0,0.01049428]
[1768655919408,0.01049361,95296.0,95291.0,0.01049417]
[1768655920016,0.00027516,95298.0,95294.0,0.01049384]
[1768655920170,0.02259933,95304.0,95297.0,0.0104935]
[1768655920374,0.01074811,95306.0,95289.0,0.25379815]
[1768655920375,0.01049262,95305.0,95301.0,0.01049306]
[1768655920739,0.01049284,95303.0,95299.0,0.01049328]
[1768655921064,0.01049306,95301.0,95296.0,0.06296117]
[1768655921281,0.01049284,95303.0,95298.0,0.01049339]
[1768655921491,0.01049284,95303.0,95299.0,0.01049328]
[1768655922089,0.01049273,95304.0,95300.0,0.01049317]
[1768655922293,0.01049273,95304.0,95299.0,0.01049328]
[1768655922492,0.01049284,95303.0,95299.0,0.01049328]
[1768655923059,0.01049284,95303.0,95298.0,0.01049339]
[1768655923060,0.01049295,95302.0,95298.0,0.01049339]
[1768655924022,0.01049284,95303.0,95299.0,0.01049328]
[1768655924226,0.01049273,95304.0,95300.0,0.01049317]
[1768655924422,0.01049284,95303.0,95300.0,0.01049317]
[1768655925184,0.01049262,95305.0,95301.0,0.01049306]
[1768655925436,0.01049273,95304.0,95300.0,0.01049317]
[1768655925669,0.01049284,95303.0,95300.0,0.01049317]
[1768655926141,0.01049273,95304.0,95300.0,0.01049317]
[1768655926375,0.01049284,95303.0,95299.0,0.01049328]
[1768655927101,0.01049075,95322.0,95317.0,0.0104913]
[1768655927297,0.00013382,95322.0,95321.0,0.05245433]
[1768655927498,0.07759946,95329.0,95321.0,0.01049086]
[1768655927499,0.0524511,95327.0,95321.0,0.01049086]
[1768655927698,0.01049075,95322.0,95316.0,0.01049141]
[1768655927929,0.01049086,95321.0,95316.0,0.00013382]
[1768655928136,0.01049097,95320.0,95314.0,0.01049163]
[1768655928292,0.06294592,95320.0,95315.0,0.01049152]
[1768655928468,0.01049075,95322.0,95315.0,0.01049152]
[1768655928672,0.01049042,95325.0,95319.0,0.06294646]
[1768655928893,0.01049086,95321.0,95313.0,0.01049174]
[1768655929094,0.01049097,95320.0,95314.0,0.01049163]
[1768655929269,0.01049097,95320.0,95315.0,0.01049152]
[1768655929928,0.01049097,95320.0,95313.0,0.01049174]
[1768655929929,0.01049108,95319.0,95313.0,0.01049174]
[1768655930209,0.01049108,95319.0,95315.0,0.01049152]
[1768655930865,0.01049108,95319.0,95314.0,0.01049163]
[1768655931024,0.01049119,95318.0,95313.0,0.01049174]
[1768655931222,0.01049108,95319.0,95312.0,0.01049185]
[1768655931447,0.05245605,95318.0,95312.0,0.01049185]
[1768655931657,0.01049108,95319.0,95316.0,0.04196581]
[1768655931857,0.05245668,95317.0,95316.0,0.04196581]
[1768655932069,0.01049119,95318.0,95316.0,0.04196581]
[1768655932245,0.05245653,95317.0,95316.0,0.04196581]
[1768655932976,0.06294729,95318.0,95316.0,0.04196581]
[1768655933158,0.01049119,95318.0,95312.0,0.01049185]
[1768655933964,0.01049119,95318.0,95314.0,0.01049163]
[1768655934764,0.0104913,95317.0,95312.0,0.01049185]
[1768655934962,0.01049108,95319.0,95313.0,0.01049174]
[1768655935131,0.01049108,95319.0,95314.0,0.05245817]
[1768655935572,0.01049119,95318.0,95314.0,0.01049163]
[1768655935952,0.01049108,95319.0,95315.0,0.01049152]
[1768655936871,0.01049108,95319.0,95314.0,0.06294978]
[1768655936872,0.01049119,95318.0,95314.0,0.01049163]
[1768655937081,0.0104913,95317.0,95312.0,0.01049185]
[1768655937295,0.06294796,95317.0,95312.0,0.01049185]
[1768655937859,0.0104913,95317.0,95313.0,0.01049174]
[1768655938063,0.03423312,95317.0,95310.0,0.01049207]
[1768655938267,0.12716,95321.0,95307.0,0.08088956]
[1768655938470,0.01049174,95313.0,95307.0,0.08088956]
[1768655938692,0.01007458,95313.0,95308.0,0.08084414]
[1768655939180,0.01049152,95315.0,95309.0,0.01049218]
[1768655939387,0.01049141,95316.0,95312.0,0.01049185]
[1768655939583,0.0104913,95317.0,95313.0,0.01044644]
[1768655940543,0.01049119,95318.0,95314.0,0.01049163]
[1768655940761,0.0104913,95317.0,95313.0,0.01044644]
[1768655941404,0.0104913,95317.0,95312.0,0.01049185]
[1768655941608,0.06294861,95316.0,95311.0,0.01049196]
[1768655941803,0.05245764,95315.0,95308.0,0.08088945]
[1768655942008,0.01049141,95316.0,95310.0,0.01049207]
[1768655942210,0.05245915,95313.0,95305.0,0.05246314]
[1768655942390,0.25379815,95320.0,95307.0,0.0104924]
[1768655942391,0.2098244,95318.0,95307.0,0.0104924]
[1768655942598,0.01049185,95312.0,95307.0,0.0104924]
[1768655942801,0.01049185,95312.0,95308.0,0.01049229]
[1768655943025,0.01049196,95311.0,95307.0,0.0104924]
[1768655943229,0.01049185,95312.0,95308.0,0.01049229]
[1768655943430,0.01049185,95312.0,95307.0,0.0104924]
[1768655943634,0.01049185,95312.0,95308.0,0.01049229]
[1768655943837,0.01049196,95311.0,95306.0,0.01049251]
[1768655944170,0.00767326,95311.0,95306.0,0.01049251]
[1768655944372,0.00767326,95311.0,95307.0,0.0104924]
[1768655944772,0.01049185,95312.0,95308.0,0.01049229]
[1768655944953,0.01049163,95314.0,95309.0,0.01049218]
[1768655946228,0.01049119,95318.0,95310.0,0.06295224]
[1768655946386,0.01049097,95320.0,95316.0,0.01049141]
[1768655946746,0.13765086,95321.0,95317.0,0.0104913]
[1768655947452,0.01049097,95320.0,95317.0,0.0104913]
[1768655948011,0.13765086,95321.0,95317.0,0.0104913]
[1768655948012,0.01049086,95321.0,95317.0,0.0104913]
[1768655948348,0.12712,95320.0,95317.0,0.0104913]
[1768655948697,0.12712,95319.0,95318.0,0.01049119]
[1768655948898,0.12712,95319.0,95318.0,0.0104459]
[1768655949293,0.12712,95322.0,95321.0,0.06294519]
[1768655949701,0.12712,95322.0,95321.0,0.01049086]
[1768655950225,0.12712,95322.0,95321.0,0.06294519]
[1768655951244,0.00013378,95325.0,95322.0,0.01049075]
[1768655951654,0.00013378,95325.0,95322.0,0.06294449]
[1768655951849,0.0106242,95325.0,95320.0,0.01049097]
[1768655952054,0.0106242,95325.0,95319.0,0.01049108]
[1768655952454,0.0524527,95324.0,95319.0,0.01049108]
[1768655952674,0.01049075,95322.0,95317.0,0.0104913]
[1768655952856,0.06294474,95322.0,95317.0,0.0104913]
[1768655953053,0.01049075,95322.0,95318.0,0.01049119]
[1768655954247,0.01049064,95323.0,95319.0,0.01049108]
[1768655956696,0.01049064,95323.0,95318.0,0.01049119]
[1768655957343,0.01049064,95323.0,95319.0,0.01049108]
[1768655957579,0.01049053,95324.0,95320.0,0.01049097]
[1768655959102,0.0106242,95325.0,95321.0,0.01049086]
[1768655959697,0.01049064,95323.0,95317.0,0.0104913]
[1768655959937,0.01049053,95324.0,95320.0,0.01049097]
[1768655960348,0.06294335,95324.0,95319.0,0.01049108]
[1768655960626,0.01049064,95323.0,95320.0,0.01049097]
[1768655961111,0.01049064,95323.0,95320.0,0.01044568]
[1768655961274,0.01049075,95322.0,95318.0,0.01049119]
[1768655962339,0.01049064,95323.0,95319.0,0.01049108]
[1768655963327,0.01049075,95322.0,95318.0,0.01049119]
[1768655963896,0.01049075,95322.0,95318.0,0.0108077]
[1768655964593,0.01049075,95322.0,95318.0,0.01049119]
[1768655965584,0.01049086,95321.0,95318.0,0.01049119]
[1768655965823,0.01049075,95322.0,95318.0,0.01049119]
[1768655966899,0.01049064,95323.0,95319.0,0.01049108]
[1768655967104,0.01049075,95322.0,95319.0,0.01049108]
[1768655967861,0.01049064,95323.0,95319.0,0.01049108]
[1768655968328,0.01049053,95324.0,95320.0,0.01044568]
[1768655973166,0.0106242,95325.0,95321.0,0.01049086]
[1768655973811,0.0106242,95325.0,95322.0,0.01049075]
[1768655974061,0.01049053,95324.0,95320.0,0.01044568]
[1768655974306,0.01049075,95322.0,95318.0,0.01049119]
[1768655974585,0.01049064,95323.0,95319.0,0.01040052]
[1768655975003,0.01049064,95323.0,95319.0,0.01035523]
[1768655975334,0.01049064,95323.0,95318.0,0.01049119]
[1768655975544,0.01049075,95322.0,95318.0,0.01049119]
[1768655976159,0.01049075,95322.0,95318.0,0.0104459]
[1768655976364,0.01049119,95318.0,95311.0,0.01049196]
[1768655976545,0.01049108,95319.0,95315.0,0.01049152]
[1768655976742,0.01049086,95321.0,95316.0,0.01049141]
[1768655976950,0.01049097,95320.0,95316.0,0.01049141]
[1768655977357,0.01049108,95319.0,95316.0,0.01049141]
[1768655977671,0.01049108,95319.0,95315.0,0.01049152]
[1768655978151,0.01049119,95318.0,95314.0,0.01049163]
[1768655978370,0.01049064,95323.0,95314.0,0.01049163]
[1768655978371,0.01049075,95322.0,95315.0,0.02208715]
[1768655978546,0.01049075,95322.0,95316.0,0.05245665]
[1768655978946,0.01049086,95321.0,95316.0,0.0629484]
[1768655980106,0.01049075,95322.0,95317.0,0.0104913]
[1768655980308,0.01049075,95322.0,95318.0,0.01049119]
[1768655981113,0.01049064,95323.0,95319.0,0.01049108]
[1768655982647,0.01049064,95323.0,95319.0,0.0104458]
[1768655983927,0.01049086,95321.0,95316.0,0.01049141]
[1768655984142,0.01049086,95321.0,95316.0,0.06294806]
[1768655984341,0.01049064,95323.0,95317.0,0.0104913]
[1768655984590,0.01049075,95322.0,95317.0,0.0104913]
[1768655985164,0.01049064,95323.0,95319.0,0.01049108]
[1768655985704,0.0629439,95323.0,95319.0,0.01049108]
[1768655986011,0.01049064,95323.0,95319.0,0.01049108]
[1768655987212,0.01049064,95323.0,95320.0,0.01049097]
[1768655987957,0.08570185,95325.0,95320.0,0.01049097]
[1768655988357,0.02262546,95324.0,95320.0,0.01049097]
[1768655988562,0.02262546,95323.0,95320.0,0.01049097]
[1768655988767,0.01049075,95322.0,95318.0,0.01049119]
[1768655989555,0.01049075,95322.0,95318.0,0.01044591]
[1768655989977,0.02262546,95323.0,95319.0,0.01049108]
[1768655990256,0.02262546,95323.0,95320.0,0.01049097]
[1768655990482,0.02262546,95324.0,95321.0,0.01049086]
[1768655990717,0.02262546,95323.0,95321.0,0.01049086]
[1768655990873,0.02262546,95324.0,95321.0,0.01049086]
[1768655991068,0.0106242,95325.0,95321.0,0.01049086]
[1768655991069,0.02262546,95323.0,95321.0,0.01049086]
[1768655991282,0.02262546,95324.0,95321.0,0.01049086]
[1768655991482,0.02262546,95324.0,95321.0,0.06294508]
[1768655992294,0.03311599,95324.0,95320.0,0.01049097]
[1768655992700,0.03311599,95324.0,95319.0,0.01049108]
[1768655992908,0.01049064,95323.0,95319.0,0.01049108]
[1768655993113,0.0331161,95323.0,95319.0,0.01049108]
[1768655993285,0.01049075,95322.0,95318.0,0.01044591]
[1768655993498,0.0331161,95323.0,95319.0,0.01049108]
[1768655995022,0.03311599,95324.0,95320.0,0.01049097]
[1768655995457,0.02262546,95324.0,95321.0,0.01049086]
[1768655996477,0.01049064,95323.0,95319.0,0.01049108]
[1768655996991,0.01049064,95323.0,95319.0,0.0104458]
[1768655997914,0.01049064,95323.0,95320.0,0.01049097]
[1768655998208,0.01049064,95323.0,95318.0,0.01044591]
[1768655998437,0.0331161,95323.0,95318.0,0.01044591]
[1768655998641,0.01049053,95324.0,95319.0,0.06294635]
[1768655999384,0.0106242,95325.0,95320.0,0.05245488]
[1768656000214,0.06294321,95324.0,95319.0,0.01049108]
[1768656000559,0.01049053,95324.0,95320.0,0.01049097]
[1768656000866,0.25356261,95330.0,95324.0,0.01]
[1768656000867,0.01048987,95330.0,95324.0,0.01]
[1768656001080,0.0104902,95327.0,95323.0,0.01049064]
[1768656001207,0.01049009,95328.0,95324.0,0.01049053]
[1768656001410,0.01049009,95328.0,95323.0,0.01049064]
[1768656001616,0.06294075,95328.0,95322.0,0.01049075]
[1768656001817,0.01049009,95328.0,95323.0,0.01049064]
[1768656002092,0.06050894,95327.0,95322.0,0.01049075]
[1768656002274,0.01049009,95328.0,95324.0,0.01049053]
[1768656002457,0.0104902,95327.0,95323.0,0.01049064]
[1768656002861,0.01049031,95326.0,95322.0,0.01049075]
[1768656003279,0.01049064,95323.0,95317.0,0.0104913]
[1768656003486,0.01049042,95325.0,95321.0,0.01049086]
[1768656003740,0.01049042,95325.0,95321.0,0.01044558]
[1768656003939,0.01049042,95325.0,95319.0,0.01049108]
[1768656003940,0.01049064,95323.0,95319.0,0.01049108]
[1768656004144,0.01049042,95325.0,95320.0,0.01049097]
[1768656004343,0.01049053,95324.0,95320.0,0.01049097]
[1768656004753,0.01049042,95325.0,95321.0,0.01044558]
[1768656004911,0.01049042,95325.0,95320.0,0.01049097]
[1768656004912,0.01049053,95324.0,95320.0,0.01049097]
[1768656005067,0.01049042,95325.0,95320.0,0.01049097]
[1768656005275,0.01049053,95324.0,95320.0,0.01044569]
[1768656005717,0.01049086,95321.0,95316.0,0.01095623]
[1768656005939,0.01049075,95322.0,95317.0,0.05245646]
[1768656006364,0.08494232,95318.0,95310.0,0.12712]
[1768656006534,0.08494232,95318.0,95308.0,0.01049229]
[1768656006721,0.08494232,95318.0,95309.0,0.13761218]
[1768656006918,0.05245852,95314.0,95309.0,0.13761218]
[1768656007158,0.01049152,95315.0,95309.0,0.13761218]
[1768656007381,0.01049141,95316.0,95314.0,0.00064809]
[1768656007593,0.01049141,95316.0,95312.0,0.01049185]
[1768656007958,0.09543351,95318.0,95313.0,0.01049174]
[1768656008165,0.09543351,95318.0,95314.0,0.01049163]
[1768656008365,0.0104913,95317.0,95313.0,0.01049174]
[1768656009614,0.01049141,95316.0,95313.0,0.01049174]
[1768656009765,0.01049141,95316.0,95309.0,0.13761218]
[1768656009766,0.01049163,95314.0,95309.0,0.13761218]
[1768656011097,0.01049152,95315.0,95310.0,0.01049207]
[1768656012040,0.01049163,95314.0,95310.0,0.0104468]
[1768656012610,0.01049163,95314.0,95311.0,0.01049196]
[1768656012812,0.01049152,95315.0,95310.0,0.0104468]
[1768656013145,0.01049163,95314.0,95310.0,0.0104468]
[1768656013353,0.01049152,95315.0,95311.0,0.01049196]
[1768656014661,0.01049163,95314.0,95309.0,0.01049218]
[1768656014857,0.01049163,95314.0,95308.0,0.01049229]
[1768656015162,0.01049152,95315.0,95310.0,0.01049207]
[1768656015373,0.01049163,95314.0,95310.0,0.01049207]
[1768656015934,0.01049163,95314.0,95309.0,0.01049218]
[1768656016498,0.01049174,95313.0,95303.0,0.01049284]
[1768656016688,0.08494232,95307.0,95302.0,0.01066105]
[1768656016828,0.06107664,95307.0,95302.0,0.01066105]
[1768656017030,0.06107664,95307.0,95302.0,0.06312584]
[1768656017449,0.07156904,95307.0,95303.0,0.01049284]
[1768656017852,0.06107664,95307.0,95304.0,0.01049273]
[1768656019513,0.01049251,95306.0,95303.0,0.01049284]
[1768656019714,0.08494232,95305.0,95302.0,0.01066105]
[1768656019921,0.01049251,95306.0,95187.0,0.01658098]
[1768656019922,0.08494232,95304.0,95285.0,0.20989574]
[1768656020061,0.12712,95310.0,95285.0,0.20989574]
[1768656020062,0.08494232,95300.0,95294.0,0.0524692]
[1768656020272,0.08916176,95300.0,95294.0,0.0524692]
[1768656020490,0.05779311,95300.0,95294.0,0.0524692]
[1768656020690,0.05714504,95300.0,95294.0,0.0524692]
[1768656020891,0.02534613,95300.0,95297.0,0.0104935]
[1768656021109,0.01049317,95300.0,95297.0,0.0104935]
[1768656021325,0.01049306,95301.0,95297.0,0.01062728]
[1768656021549,0.01049317,95300.0,95297.0,0.00013378]
[1768656021743,0.06295849,95301.0,95300.0,0.00064806]
[1768656022334,0.06295849,95301.0,95297.0,0.00013378]
[1768656022335,0.01049317,95300.0,95297.0,0.00013378]
[1768656022559,0.06295914,95300.0,95297.0,0.00013378]
[1768656023377,0.05246645,95299.0,95297.0,0.00013378]
[1768656023988,0.05246699,95298.0,95297.0,0.00013378]
[1768656024375,0.06296191,95296.0,95293.0,0.00046306]
[1768656025025,0.01049361,95296.0,95293.0,0.00046306]
[1768656025381,0.05246975,95293.0,95292.0,1e-08]
[1768656026164,0.12298314,95293.0,95292.0,1e-08]
[1768656027140,0.0523917,95293.0,95292.0,1e-08]
[1768656032379,0.0533917,95293.0,95292.0,1e-08]
[1768656033297,0.12771127,95293.0,95292.0,1e-08]
[1768656033866,0.0533917,95293.0,95292.0,1e-08]
[1768656035577,0.001,95293.0,95292.0,1e-08]
[1768656035776,0.05346975,95293.0,95292.0,0.30000001]
[1768656035982,0.05346975,95293.0,95292.0,0.29995474]
[1768656036205,0.05246924,95294.0,95292.0,0.29990947]
[1768656036753,0.01049406,95292.0,95285.0,0.05247407]
[1768656036924,0.01049428,95290.0,95286.0,0.01049472]
[1768656037940,0.01049417,95291.0,95286.0,0.01049472]
[1768656038750,0.01049395,95293.0,95286.0,0.10199908]
[1768656039771,0.01049417,95291.0,95287.0,0.01049461]
[1768656040523,0.01049406,95292.0,95288.0,0.0104945]
[1768656040737,0.0104935,95297.0,95292.0,0.01049406]
[1768656041567,0.0104935,95297.0,95291.0,0.01049417]
[1768656041708,0.0104935,95297.0,95293.0,0.01044868]
[1768656042893,0.0104935,95297.0,95291.0,0.06296458]
[1768656042894,0.01049361,95296.0,95292.0,0.01049406]
[1768656043236,0.01049361,95296.0,95291.0,0.01049417]
[1768656043237,0.01049372,95295.0,95291.0,0.01049417]
[1768656044859,0.0104935,95297.0,95293.0,0.01049395]
[1768656045033,0.01049361,95296.0,95292.0,0.01049406]
[1768656045788,0.0104935,95297.0,95293.0,0.01049395]
[1768656047124,0.01095643,95298.0,95294.0,0.01049384]
[1768656048105,0.0104935,95297.0,95294.0,0.01049384]
[1768656048303,0.0104935,95297.0,95293.0,0.01049395]
[1768656048506,0.01049361,95296.0,95292.0,0.01049406]
[1768656049434,0.01049361,95296.0,95292.0,0.01044879]
[1768656050246,0.01049372,95295.0,95292.0,0.01044879]
[1768656050671,0.01049372,95295.0,95291.0,0.01049417]
[1768656052525,0.01049361,95296.0,95292.0,0.01049406]
[1768656053063,0.0104935,95297.0,95293.0,0.01049395]
[1768656054263,0.03313749,95297.0,95293.0,0.01049395]
[1768656055302,0.02264399,95296.0,95293.0,0.01049395]
[1768656057063,0.02264399,95297.0,95293.0,0.01049395]
[1768656057265,0.02264399,95296.0,95293.0,0.01049395]
[1768656057811,0.02264399,95296.0,95294.0,0.05246913]
[1768656058013,0.02264399,95297.0,95294.0,0.06296297]
[1768656058252,0.02264399,95296.0,95294.0,0.01049384]
[1768656058454,0.01049361,95296.0,95293.0,0.01049395]
[1768656058781,0.0331376,95296.0,95293.0,0.01049395]
[1768656059167,0.0331376,95296.0,95292.0,0.01049406]
[1768656060479,0.0331376,95296.0,95292.0,0.01044879]
[1768656060844,0.02264399,95296.0,95293.0,0.01049395]
[1768656061049,0.0331376,95296.0,95292.0,0.01044879]
[1768656061620,0.01049372,95295.0,95292.0,0.01044879]
[1768656062354,0.0331376,95296.0,95292.0,0.01044879]
[1768656062584,0.02264399,95296.0,95293.0,0.01049395]
[1768656063021,0.0331376,95296.0,95292.0,0.01044879]
[1768656063363,0.01049372,95295.0,95292.0,0.01044879]
[1768656063796,0.0331376,95296.0,95292.0,0.01044879]
[1768656064006,0.02264399,95296.0,95293.0,0.01044868]
[1768656066393,0.01049372,95295.0,95291.0,0.01049417]
[1768656066582,0.01049384,95294.0,95290.0,0.01049428]
[1768656066781,0.01049384,95294.0,95291.0,0.092361]
[1768656066988,0.01049384,95294.0,95291.0,0.09231573]
[1768656067187,0.02264399,95295.0,95291.0,0.09231573]
[1768656067363,0.02264399,95297.0,95291.0,0.09231573]
[1768656067548,0.02264399,95296.0,95291.0,0.09231573]
[1768656067756,0.02264399,95295.0,95291.0,0.14478618]
[1768656067933,0.02264399,95297.0,95291.0,0.14478618]
[1768656068135,0.02264399,95296.0,95291.0,0.14478618]
[1768656068439,0.03313771,95295.0,95291.0,0.1028099]
[1768656068634,0.03313771,95295.0,95292.0,0.01049406]
[1768656068858,0.02264399,95295.0,95292.0,0.01049406]
[1768656069240,0.02264399,95295.0,95292.0,0.06296432]
[1768656069674,0.02264399,95296.0,95293.0,0.01049395]
[1768656069876,0.02264399,95295.0,95293.0,0.01049395]
[1768656070111,0.02264399,95296.0,95293.0,0.01049395]
[1768656070279,0.02264399,95295.0,95293.0,0.01049395]
[1768656070651,0.02264399,95295.0,95292.0,0.01049406]
[1768656070904,0.03838458,95295.0,95292.0,0.01049406]
[1768656071204,0.0488783,95295.0,95291.0,0.01049417]
[1768656071535,0.03838458,95295.0,95292.0,0.01049406]
[1768656072337,0.0488783,95295.0,95290.0,0.01049428]
[1768656072539,0.01049395,95293.0,95287.0,0.01049461]
[1768656072751,0.01049406,95292.0,95288.0,0.0104945]
[1768656074671,0.01049428,95290.0,95286.0,0.092361]
[1768656074872,0.00744681,95290.0,95286.0,0.10285572]
[1768656075710,0.01049417,95291.0,95287.0,0.01049461]
[1768656075867,0.01049406,95292.0,95288.0,0.0104945]
[1768656077317,0.01049417,95291.0,95287.0,0.01049461]
[1768656078861,0.01049428,95290.0,95287.0,0.01049461]
[1768656079882,0.01049417,95291.0,95287.0,0.01049461]
[1768656081171,0.01049428,95290.0,95286.0,0.01049472]
[1768656084362,0.01049428,95290.0,95285.0,0.06302346]
[1768656085329,0.01049428,95290.0,95286.0,0.01049472]
[1768656087868,0.0104945,95288.0,95285.0,5.451e-05]
[1768656088025,0.06296711,95288.0,95285.0,5.451e-05]
[1768656088222,0.06296711,95288.0,95285.0,9.25e-06]
[1768656088834,0.0104945,95288.0,95285.0,9.25e-06]
[1768656089262,0.06296717,95288.0,95285.0,9.25e-06]
[1768656090297,0.05247305,95287.0,95285.0,9.25e-06]
[1768656090605,0.0524736,95286.0,95285.0,9.25e-06]
[1768656090762,0.03147363,95286.0,95285.0,9.25e-06]
[1768656091865,0.01049428,95290.0,95285.0,9.25e-06]
[1768656092090,0.01049439,95289.0,95285.0,0.01050408]
[1768656092961,0.01049428,95290.0,95286.0,0.01049472]
[1768656093100,0.0093923,95291.0,95287.0,0.01049461]
[1768656093321,0.13765406,95292.0,95288.0,0.0104945]
[1768656093898,0.01049384,95294.0,95289.0,0.01049439]
[1768656094097,0.13765395,95293.0,95289.0,0.01049439]
[1768656094213,0.12716,95293.0,95290.0,0.01049428]
[1768656097503,0.13765395,95293.0,95289.0,0.01049439]
[1768656098292,0.13765395,95293.0,95290.0,0.01049428]
[1768656098487,0.13765395,95293.0,95289.0,0.01049439]
[1768656100758,0.13765395,95293.0,95289.0,0.11307527]
[1768656100962,0.13765395,95293.0,95289.0,0.01049439]
[1768656102340,0.12716,95293.0,95290.0,0.01049428]
[1768656105414,0.13765395,95293.0,95289.0,0.01049439]
[1768656105993,0.02265762,95292.0,95289.0,0.01049439]
[1768656106190,0.02265762,95291.0,95289.0,0.01049439]
[1768656106421,0.02265762,95292.0,95289.0,0.01049439]
[1768656106663,0.02265762,95291.0,95289.0,0.01049439]
[1768656106797,0.03315168,95292.0,95288.0,0.0104945]
[1768656106999,0.02265762,95291.0,95288.0,0.0104945]
[1768656108451,0.02265762,95291.0,95287.0,0.01049461]
[1768656108657,0.02265762,95291.0,95288.0,0.0104945]
[1768656109992,0.02265762,95291.0,95289.0,0.05247178]
[1768656110168,0.02265762,95292.0,95289.0,0.01049439]
[1768656110489,0.02265762,95291.0,95289.0,0.01049439]
[1768656110797,0.02265762,95292.0,95289.0,0.01049439]
[1768656111018,0.02265762,95291.0,95289.0,0.01049439]
[1768656111299,0.02265762,95292.0,95289.0,0.01049439]